bitfinex/quotes_ETHUSD_20241129
["timestamp","ask_amount","ask_price","bid_price","bid_amount"]
[1732893225957,0.13733224,3641.5,3640.6,1.5049]
[1732893226157,1.5823,3641.6,3640.6,4.5049]
[1732893226462,1.5823,3641.8,3640.9,2.65693448]
[1732893226771,1.5823,3641.8,3641.0,0.41618345]
[1732893227354,1.5823,3641.8,3640.7,1.5049]
[1732893228258,2.9497945,3642.6,3640.9,5.40349448]
[1732893228259,2.7453,3642.6,3640.9,5.40349448]
[1732893228486,2.74545,3642.4,3641.0,1.6647]
[1732893228667,0.54823109,3641.3,3641.0,1.6647]
[1732893228885,1.5823,3642.3,3641.2,3.0]
[1732893229097,0.55817197,3641.6,3641.3,0.76647]
[1732893235117,0.55817197,3641.6,3641.0,4.6647]
[1732893235917,0.55817197,3641.6,3641.0,1.6647]
[1732893237123,0.55817197,3641.6,3640.2,2.65693448]
[1732893237308,0.55817197,3641.6,3640.3,1.6291]
[1732893237501,0.55817197,3641.6,3640.4,0.42860345]
[1732893238125,1.5544,3641.5,3640.3,1.6291]
[1732893238293,1.5544,3641.5,3640.3,4.6291]
[1732893239201,1.5544,3641.5,3640.3,1.6291]
[1732893239424,0.14174647,3641.9,3639.9,0.15182]
[1732893239425,0.5497993,3640.5,3640.0,1.5405]
[1732893239726,0.5497993,3640.5,3639.9,0.15182]
[1732893239881,1.5738,3640.4,3638.1,1.5405]
[1732893240081,1.5738,3640.4,3639.2,2.65693448]
[1732893241031,1.503,3640.9,3639.7,1.656]
[1732893241729,0.54782259,3640.2,3639.7,1.656]
[1732893241902,0.54782259,3640.2,3639.8,0.70605545]
[1732893242533,1.5823,3640.1,3639.3,4.5853]
[1732893242997,1.5823,3640.1,3639.3,4.8599]
[1732893243539,1.5823,3640.1,3639.3,3.2746]
[1732893243843,1.5823,3640.1,3638.9,3.2746]
[1732893244208,1.5823,3640.1,3639.3,3.0]
[1732893244531,1.5823,3640.1,3639.3,3.56569345]
[1732893245594,0.54561933,3639.4,3639.3,3.56569345]
[1732893245832,0.37511329,3639.4,3639.3,0.56569345]
[1732893246035,1.5823,3640.1,3639.2,2.65693448]
[1732893246218,1.5823,3640.1,3639.3,3.0]
[1732893246419,0.54699258,3639.6,3639.3,3.0]
[1732893246636,1.5192,3640.9,3639.4,4.26153]
[1732893246930,1.5192,3640.9,3640.1,2.65693448]
[1732893247147,1.5192,3640.9,3640.2,1.77959345]
[1732893247303,0.55561658,3640.6,3640.2,1.77959345]
[1732893247499,2.65693448,3642.2,3640.2,1.77959345]
[1732893247500,1.5823,3642.0,3640.5,2.65693448]
[1732893247805,1.5823,3642.0,3640.6,3.0]
[1732893248060,0.53803899,3641.1,3640.6,3.0]
[1732893248267,1.5823,3642.0,3641.0,3.0]
[1732893248474,0.55006865,3641.3,3641.1,1.5085]
[1732893248671,1.5823,3642.0,3641.1,1.5085]
[1732893249053,0.54056577,3641.6,3641.1,1.5085]
[1732893255094,1.5823,3642.4,3641.4,2.65693448]
[1732893255436,0.5484566,3642.6,3642.0,3.0]
[1732893256080,3.44634146,3643.2,3642.3,2.65693448]
[1732893256278,0.55153103,3642.8,3642.5,1.5599]
[1732893256477,1.86404146,3643.2,3642.5,4.30519]
[1732893256667,1.86404146,3643.2,3642.6,1.27076245]
[1732893256867,1.86404146,3643.2,3642.7,5.40213448]
[1732893257107,1.86404146,3643.2,3642.8,5.7451]
[1732893257321,1.5772,3644.9,3643.3,1.5222]
[1732893257463,1.5772,3644.9,3643.9,3.0]
[1732893257665,0.02,3645.0,3644.1,4.26634]
[1732893257899,0.02,3645.0,3644.3,3.0]
[1732893258665,0.53769609,3644.4,3644.3,3.0]
[1732893258866,0.05355957,3644.4,3644.3,3.0]
[1732893259101,0.05355957,3644.4,3644.3,5.74401]
[1732893259321,0.02,3645.0,3644.4,0.55]
[1732893259524,0.02,3645.0,3644.5,0.02742926]
[1732893259675,0.02,3645.0,3644.5,3.02742926]
[1732893259882,0.02,3645.0,3644.5,0.02742926]
[1732893260432,0.02,3645.0,3644.5,3.02742926]
[1732893260626,0.02,3645.0,3644.6,0.73729463]
[1732893262085,0.02,3645.0,3644.3,4.05162708]
[1732893262289,0.02,3645.0,3644.1,1.5222]
[1732893262607,0.02,3645.0,3644.2,0.02743279]
[1732893262984,0.02,3645.0,3644.1,4.5222]
[1732893263304,0.02,3645.0,3644.2,2.65693448]
[1732893263507,0.02,3645.0,3644.4,0.55]
[1732893263823,0.02,3645.0,3644.6,2.65693448]
[1732893264004,0.02,3645.0,3644.7,1.5344]
[1732893264598,0.02,3645.0,3644.9,0.55]
[1732893264934,0.02,3645.0,3644.8,2.74362]
[1732893264935,0.02,3645.0,3644.8,0.55]
[1732893265230,0.02,3645.0,3644.9,1.04850545]
[1732893265436,0.02,3645.0,3644.7,4.5344]
[1732893265593,0.02,3645.0,3644.7,1.5344]
[1732893266243,0.02,3645.0,3644.1,1.6626]
[1732893266540,0.02,3645.0,3643.9,2.74425]
[1732893266773,0.02,3645.0,3644.0,0.02743358]
[1732893266976,0.02,3645.0,3644.2,1.5221]
[1732893267133,0.02,3645.0,3644.3,0.75594955]
[1732893267332,0.02,3645.0,3644.4,0.0274298]
[1732893267549,0.02,3645.0,3644.4,0.5774298]
[1732893268265,0.02,3645.0,3644.5,0.33457015]
[1732893268492,0.02,3645.0,3644.5,3.33457015]
[1732893268765,0.02,3645.0,3644.7,3.0]
[1732893269066,0.02,3645.0,3644.8,1.63042797]
[1732893269244,0.02,3645.0,3644.8,1.603]
[1732893269643,0.02,3645.0,3644.8,1.93836212]
[1732893269968,0.02,3645.0,3644.8,1.603]
[1732893270140,0.02,3645.0,3644.9,0.86869733]
[1732893270677,0.0274317,3645.4,3644.9,10.81918181]
[1732893270975,1.5886,3647.6,3646.0,3.0]
[1732893271266,1.5886,3647.6,3646.2,1.5098]
[1732893271631,0.54072879,3647.2,3646.2,1.5098]
[1732893271871,1.5886,3647.6,3646.3,5.39941448]
[1732893272060,0.00576983,3648.0,3646.4,0.99092145]
[1732893272256,0.00576983,3648.0,3646.4,3.73332145]
[1732893272257,0.53579263,3647.3,3646.4,3.73332145]
[1732893272565,1.60806983,3648.0,3646.5,2.74234]
[1732893272934,0.55449519,3647.5,3646.6,5.76968478]
[1732893273255,0.1,3649.6,3646.6,5.76968478]
[1732893273256,2.14208,3650.0,3647.8,2.74137]
[1732893273455,2.14208,3650.0,3647.0,5.74197]
[1732893273456,2.74031,3649.3,3648.0,1.5588]
[1732893273758,2.74031,3649.3,3647.1,3.11713091]
[1732893273759,1.6023,3648.4,3647.4,1.5588]
[1732893274662,1.5184,3648.9,3647.4,1.5588]
[1732893274983,0.53625269,3648.6,3647.4,1.5588]
[1732893275144,0.02,3649.5,3647.4,1.71468]
[1732893275344,0.54431128,3648.5,3647.4,1.7420833]
[1732893275545,0.02,3649.5,3647.5,7.70783091]
[1732893275785,0.02,3649.9,3648.1,3.0]
[1732893276081,0.55565909,3649.3,3648.1,0.02740115]
[1732893276280,1.5648,3649.2,3647.8,1.5907]
[1732893276741,1.5648,3649.2,3647.9,0.02740461]
[1732893276945,1.5648,3649.2,3647.8,1.5907]
[1732893277188,1.5648,3649.2,3647.6,0.02740461]
[1732893277373,2.74085,3648.5,3646.8,1.5752]
[1732893277584,3.291,3648.3,3646.4,1.56661081]
[1732893277881,0.55494643,3647.8,3646.4,1.5666127]
[1732893278085,0.55,3647.7,3646.4,1.5392]
[1732893279261,0.55494643,3647.8,3646.5,0.02741531]
[1732893279464,0.55,3647.7,3646.6,0.15666153]
[1732893279666,0.55494643,3647.8,3646.6,0.18407647]
[1732893279855,1.6023,3647.9,3646.6,0.18407647]
[1732893280165,2.16358866,3647.9,3646.6,0.18407647]
[1732893280601,0.55,3647.8,3646.6,0.18407441]
[1732893280752,0.55,3647.8,3646.4,1.56661343]
[1732893281153,0.55,3647.8,3646.4,1.5392]
[1732893281352,0.55,3647.6,3646.0,1.5945]
[1732893281558,0.55,3647.2,3645.4,0.47870387]
[1732893281786,1.6023,3647.3,3645.2,1.5945]
[1732893281787,3.29199,3647.0,3645.2,1.62192005]
[1732893281992,2.74213,3646.8,3645.2,1.62192005]
[1732893282170,3.29203,3647.0,3645.2,1.62192005]
[1732893282493,3.29213,3646.8,3645.2,1.62192005]
[1732893282698,2.74159,3647.6,3645.3,0.16219201]
[1732893282699,2.74228,3646.6,3645.3,0.16219201]
[1732893282882,2.74249,3646.4,3644.5,2.74381]
[1732893283087,2.74249,3646.4,3644.6,1.69721509]
[1732893283263,2.74249,3646.4,3644.8,3.11713091]
[1732893283463,0.55306586,3646.2,3644.9,0.02742552]
[1732893283673,0.55306586,3646.2,3644.8,3.11713091]
[1732893284001,2.74274,3646.0,3644.9,0.48143443]
[1732893284196,3.29564586,3646.2,3644.7,0.06271337]
[1732893284403,0.55306586,3646.2,3644.8,0.02742734]
[1732893284900,4.33416,3646.0,3644.7,0.06271337]
[1732893285260,0.55306586,3646.2,3644.8,0.02742938]
[1732893285547,0.55306586,3646.2,3644.9,3.11713091]
[1732893285763,0.55306586,3646.2,3645.0,0.02742541]
[1732893286160,1.6023,3646.6,3645.0,3.02742541]
[1732893286361,2.74257,3646.3,3645.0,3.02742541]
[1732893286607,2.7426,3646.2,3645.0,3.02742541]
[1732893286898,0.55,3646.5,3644.8,0.17246428]
[1732893286899,2.74281,3645.9,3645.1,0.63170206]
[1732893287055,2.74281,3645.9,3644.8,0.17246428]
[1732893287056,2.74272,3646.1,3644.8,0.17246428]
[1732893287259,2.1523,3646.3,3644.8,0.17246428]
[1732893287467,2.74282,3645.9,3644.8,0.17246428]
[1732893287781,2.74301,3645.7,3644.8,0.17246428]
[1732893287973,2.1523,3646.3,3644.8,0.17246428]
[1732893288169,2.1523,3646.3,3644.1,3.11713091]
[1732893288170,2.74315,3645.5,3644.1,1.5286]
[1732893288360,0.56189018,3645.6,3644.2,0.02743347]
[1732893288756,2.74324,3645.4,3644.2,0.02743347]
[1732893288960,3.30493018,3645.6,3644.2,0.02743347]
[1732893288961,0.56189018,3645.6,3644.2,0.02743347]
[1732893289197,3.30492018,3645.6,3644.2,0.02742876]
[1732893289399,0.56189018,3645.6,3644.3,0.15560288]
[1732893289698,2.74335,3645.2,3644.3,0.15560288]
[1732893290076,2.74334,3645.2,3644.3,0.15560288]
[1732893290556,2.74342,3645.1,3644.3,0.15560288]
[1732893290961,2.74326,3645.3,3644.3,0.15560288]
[1732893291169,2.74337,3645.2,3644.3,0.15560288]
[1732893291400,2.74353,3645.0,3644.3,0.15560288]
[1732893291613,4.31003,3645.0,3644.3,0.15560288]
[1732893291788,2.74389,3644.5,3642.5,1.5708]
[1732893291994,2.11983431,3645.0,3642.8,3.11713091]
[1732893292157,2.11983431,3645.0,3643.0,1.5708]
[1732893292360,2.74404,3644.3,3643.1,0.02743714]
[1732893292586,2.74384,3644.6,3643.2,0.20462585]
[1732893292788,0.55,3644.5,3643.3,0.02743857]
[1732893292972,3.29386,3644.5,3643.3,0.02743857]
[1732893293297,0.55645753,3644.4,3643.3,0.02743857]
[1732893293598,2.74355,3645.0,3643.4,1.5276]
[1732893293811,0.55,3644.9,3643.5,0.51511496]
[1732893294307,2.74393,3644.4,3643.5,0.48767953]
[1732893294473,2.74393,3644.4,3643.4,1.5276]
[1732893294474,2.74393,3644.4,3643.4,1.5550387]
[1732893294676,4.88828,3644.6,3643.4,1.5550387]
[1732893294879,4.88829,3644.6,3643.4,1.5550387]
[1732893295174,2.74399,3644.4,3643.4,1.5550387]
[1732893295375,4.88829,3644.6,3643.4,1.5550387]
[1732893295607,0.5598034,3644.7,3643.5,0.17596646]
[1732893295904,0.5598034,3644.7,3643.6,1.54983612]
[1732893296205,1.52541061,3647.2,3645.0,2.74341]
[1732893296415,1.52541061,3647.2,3644.8,1.5323]
[1732893296416,2.74236,3646.5,3645.2,1.5323]
[1732893296709,2.74226,3646.7,3645.3,0.0274228]
[1732893297006,2.74226,3646.7,3645.4,0.45597228]
[1732893297161,2.74229,3646.6,3645.4,0.45597228]
[1732893297363,2.74205,3646.9,3645.4,0.4833947]
[1732893297699,2.74205,3646.9,3645.5,1.5301]
[1732893297700,2.74211,3646.9,3645.5,1.5301]
[1732893297903,2.7419,3647.1,3645.6,0.02742055]
[1732893298110,0.53605317,3646.6,3645.7,0.50134928]
[1732893298903,2.74238,3646.5,3645.7,0.50134928]
[1732893299061,2.74235,3646.5,3645.5,1.5301]
[1732893299267,2.74255,3646.3,3645.5,1.5301]
[1732893299560,3.29235,3646.5,3645.5,1.5301]
[1732893299561,0.55,3646.5,3645.5,1.5301]
[1732893299764,3.29237,3646.5,3645.5,1.5301]
[1732893300708,0.55,3646.5,3645.5,1.5301]
[1732893301009,2.74243,3646.4,3645.6,0.15301]
[1732893301176,0.55,3646.5,3645.6,0.15301]
[1732893301379,3.27835317,3646.6,3645.6,0.15301]
[1732893301380,0.53605317,3646.6,3645.7,0.02742414]
[1732893301615,0.53605317,3646.6,3645.6,0.15301]
[1732893301903,0.53605317,3646.6,3645.7,0.78276625]
[1732893302103,0.53605317,3646.6,3645.8,0.0274216]
[1732893302403,0.53605317,3646.6,3645.7,0.81018788]
[1732893302618,0.53605317,3646.6,3645.7,0.78276625]
[1732893302822,0.53605317,3646.6,3645.5,0.02742171]
[1732893303105,0.55,3646.1,3644.6,1.6086]
[1732893303275,2.74296,3645.7,3644.6,1.6086]
[1732893303909,2.74281,3645.9,3644.6,1.6086]
[1732893304117,2.743,3645.7,3644.6,1.6086]
[1732893304338,2.743,3645.7,3644.3,0.30202918]
[1732893304339,2.74263,3646.2,3645.0,4.5889]
[1732893304572,2.74229,3646.6,3645.0,3.02742544]
[1732893304699,0.5523,3646.8,3645.4,3.11713091]
[1732893304897,2.74205,3646.9,3645.5,1.6739222]
[1732893305097,2.74213,3646.8,3645.6,0.47910531]
[1732893305310,2.74226,3646.7,3645.6,0.47910531]
[1732893305640,0.5598094,3646.6,3645.6,0.47910531]
[1732893305852,2.74237,3646.5,3645.5,1.6465]
[1732893306138,0.5598094,3646.6,3645.6,0.0274229]
[1732893306338,0.5598094,3646.6,3645.5,1.6465]
[1732893306339,0.5598094,3646.6,3645.5,1.67392121]
[1732893306704,0.5598094,3646.6,3645.5,1.6465]
[1732893307226,3.3020894,3646.6,3645.5,1.6465]
[1732893307424,3.3020894,3646.6,3644.7,0.43546]
[1732893307425,2.74266,3646.1,3644.8,1.6635]
[1732893307599,2.74288,3645.8,3644.8,1.6635]
[1732893307796,2.74297,3645.7,3644.8,1.6635]
[1732893308214,2.74308,3645.6,3644.8,1.6635]
[1732893308435,2.74289,3645.8,3644.8,1.6635]
[1732893308636,2.74289,3645.8,3644.9,0.182436]
[1732893309038,0.55,3646.1,3643.6,3.53681895]
[1732893309211,2.74365,3644.8,3643.8,1.62673141]
[1732893309415,3.11713091,3645.8,3643.8,1.5993]
[1732893309416,2.74379,3644.6,3643.8,1.5993]
[1732893309600,2.74382,3644.6,3643.8,1.5993]
[1732893309802,0.5523,3645.2,3643.8,1.5993]
[1732893309803,3.28927463,3644.8,3643.8,1.5993]
[1732893309998,2.74362,3644.9,3643.9,0.17718803]
[1732893310207,3.29564,3645.2,3644.0,0.02743738]
[1732893310507,2.74349,3645.0,3643.9,0.17718803]
[1732893310936,3.29565,3645.2,3643.9,0.17718803]
[1732893311142,3.29565,3645.2,3644.0,0.48039227]
[1732893311143,2.74347,3645.1,3644.0,0.48039227]
[1732893311350,0.55,3645.1,3643.9,0.17718803]
[1732893311516,0.5523,3645.7,3644.2,1.565]
[1732893311706,0.55,3645.6,3644.2,1.565]
[1732893312044,3.29308,3645.6,3644.2,1.565]
[1732893312228,0.55,3645.2,3644.2,1.565]
[1732893312438,0.55441179,3645.4,3644.2,1.7392188]
[1732893312725,2.74336,3645.2,3644.3,0.02743627]
[1732893312936,2.74341,3645.1,3644.2,1.565]
[1732893313106,0.55441179,3645.4,3644.2,1.565]
[1732893314465,0.55441179,3645.4,3643.2,1.5175]
[1732893314466,3.29326,3645.3,3643.2,1.5175]
[1732893314764,0.55,3645.0,3643.3,0.02743741]
[1732893314905,0.55,3645.0,3643.4,0.49366683]
[1732893315335,0.55,3645.2,3643.4,0.49366683]
[1732893315650,0.55,3645.3,3643.6,1.5266]
[1732893315805,0.55,3645.3,3643.7,0.02743516]
[1732893316008,0.55,3645.3,3643.8,0.76711661]
[1732893319429,0.55,3645.1,3643.6,1.5266]
[1732893319916,0.54437142,3644.3,3643.6,1.5266]
[1732893320116,0.55,3644.1,3642.9,1.5919]
[1732893320307,0.5523,3644.2,3643.0,0.02744496]
[1732893320506,0.54437142,3644.3,3642.9,1.5919]
[1732893320708,0.54437142,3644.3,3643.0,0.15919]
[1732893320957,0.55,3644.2,3643.0,0.15919]
[1732893321250,0.54437142,3644.3,3643.1,1.5783]
[1732893321606,0.5523,3644.3,3643.0,0.15919]
[1732893321839,0.55,3644.2,3642.6,1.5865]
[1732893322154,0.55,3644.2,3642.7,0.15865]
[1732893323808,0.5488161,3643.5,3642.7,0.15865]
[1732893324223,0.5488161,3643.5,3642.6,1.5865]
[1732893324224,0.55,3643.4,3642.6,1.5865]
[1732893324449,0.5488161,3643.5,3642.6,1.5865]
[1732893324660,0.5523,3644.5,3642.8,1.567]
[1732893325947,0.55,3644.4,3642.8,1.567]
[1732893326754,0.55,3643.7,3642.8,1.567]
[1732893327058,0.55,3643.7,3642.9,0.1567]
[1732893327552,0.55106512,3643.8,3642.9,0.1567]
[1732893327717,0.55,3644.4,3643.0,1.5008]
[1732893328313,0.55,3643.8,3643.0,1.5008]
[1732893328649,0.55,3643.8,3643.1,0.16575]
[1732893329155,0.56022254,3643.9,3643.1,0.16575]
[1732893329651,0.56022254,3643.9,3643.2,0.02744293]
[1732893329811,0.5523,3645.0,3643.3,1.6148]
[1732893330009,0.5523,3645.0,3643.5,1.6148]
[1732893330452,0.5523,3645.0,3643.4,0.16422429]
[1732893330453,3.11713091,3645.7,3643.6,0.02744052]
[1732893330619,0.5523,3645.7,3643.7,1.5617]
[1732893330822,0.54151188,3644.8,3643.7,1.5617]
[1732893332061,0.5523,3645.7,3643.4,0.16422429]
[1732893332062,0.5523,3645.7,3643.9,1.5949]
[1732893332211,0.5523,3645.7,3644.0,1.75713379]
[1732893333359,0.55,3645.6,3644.0,1.75713379]
[1732893333543,1.1023,3645.0,3642.6,1.5373]
[1732893333863,1.1023,3645.0,3642.5,0.2746]
[1732893333864,0.55,3644.8,3642.8,1.5373]
[1732893334431,0.55,3644.8,3642.9,0.0274428]
[1732893334651,0.55,3644.6,3643.0,1.5373]
[1732893335245,0.55,3644.6,3643.1,0.02744446]
[1732893335447,0.55,3644.6,3643.2,1.6309]
[1732893336054,0.55,3644.6,3643.3,0.02744311]
[1732893336259,0.55,3644.6,3643.2,1.6309]
[1732893336460,0.55,3644.6,3643.3,0.16309]
[1732893336623,0.55,3644.6,3643.2,1.6309]
[1732893336624,0.55,3643.9,3643.2,1.6309]
[1732893337047,0.55,3643.9,3643.3,0.2746]
[1732893337438,0.55,3643.7,3642.6,0.2746]
[1732893337641,0.55,3643.7,3642.2,1.5922]
[1732893337642,0.55,3643.7,3642.2,1.5648]
[1732893338178,3.11713091,3643.5,3642.2,1.5648]
[1732893338463,0.55,3642.8,3642.2,1.5648]
[1732893339922,3.29516,3642.8,3642.2,1.5648]
[1732893340283,0.55,3642.8,3642.2,1.5648]
[1732893340575,0.5481624,3642.9,3642.2,1.5648]
[1732893340746,0.58583609,3644.4,3642.4,3.11713091]
[1732893340956,2.74993609,3644.6,3643.2,1.5364]
[1732893341120,2.7441,3644.2,3643.2,1.5364]
[1732893341321,2.74405,3644.3,3643.2,1.5364]
[1732893341565,0.55650198,3644.0,3643.2,1.5364]
[1732893341926,1.13620198,3644.0,3642.8,1.5252]
[1732893342241,0.55,3643.3,3642.8,1.5252]
[1732893342549,0.55,3643.1,3642.8,1.5252]
[1732893342730,2.74469,3643.4,3642.8,1.5252]
[1732893342731,0.55,3643.4,3642.8,1.5252]
[1732893343136,2.74469,3643.4,3642.8,1.5252]
[1732893343338,0.55,3643.3,3642.8,1.5252]
[1732893343539,0.55,3643.1,3642.8,1.5252]
[1732893343737,2.74491,3643.1,3642.8,1.5252]
[1732893343939,0.55,3643.3,3642.8,1.5252]
[1732893344341,2.74469,3643.4,3642.8,1.5252]
[1732893344563,0.55,3643.1,3642.8,1.5252]
[1732893344741,0.55,3643.1,3641.7,3.02745138]
[1732893344742,0.55,3643.1,3641.0,1.6328]
[1732893345064,0.55,3642.0,3641.0,1.6328]
[1732893345274,2.74581,3641.9,3641.0,1.6328]
[1732893345563,3.11713091,3643.0,3641.2,1.5796]
[1732893345564,2.74559,3642.2,3641.2,1.5796]
[1732893345787,0.55,3642.4,3641.2,1.60705841]
[1732893346398,0.55,3642.5,3641.2,1.60705841]
[1732893346547,3.29539,3642.5,3641.2,1.60705841]
[1732893346747,3.29539,3642.5,3641.2,1.5796]
[1732893346949,3.29539,3642.5,3641.4,1.5761]
[1732893347193,0.55,3642.3,3641.4,1.5761]
[1732893347489,0.55,3642.4,3641.4,1.5761]
[1732893347687,3.29546,3642.4,3641.4,1.5761]
[1732893347859,3.29546,3642.4,3641.5,0.17531336]
[1732893348208,2.7459,3641.8,3641.4,1.5761]
[1732893348396,2.74612,3641.5,3640.6,1.6046]
[1732893348700,2.74614,3641.5,3640.6,1.6046]
[1732893349051,3.11713091,3642.0,3640.6,1.6046]
[1732893349349,2.74675,3640.7,3639.4,1.5372]
[1732893349564,0.55,3640.9,3639.4,1.5372]
[1732893349769,0.55,3641.0,3639.4,1.56466865]
[1732893349978,2.74643,3641.1,3639.4,1.56466865]
[1732893349979,0.55,3641.1,3639.4,1.56466865]
[1732893350208,2.74651,3641.0,3639.4,1.56466865]
[1732893350499,0.55,3641.1,3639.6,1.5717]
[1732893350703,0.55,3641.1,3639.6,1.59916686]
[1732893350902,0.55,3641.1,3639.7,3.0]
[1732893351196,0.55,3641.1,3639.8,1.5551]
[1732893351397,3.29659,3640.9,3639.8,1.5551]
[1732893351707,2.74689,3640.5,3639.8,1.5551]
[1732893351909,0.55,3640.4,3639.8,1.5551]
[1732893352203,0.5797,3640.9,3639.8,1.5551]
[1732893352204,3.29678,3640.7,3639.8,1.5551]
[1732893352360,0.55,3640.4,3639.8,1.5551]
[1732893352761,2.74718,3640.1,3638.7,1.6146]
[1732893353005,0.55,3639.9,3638.7,1.6146]
[1732893353198,3.2974,3639.9,3638.7,1.6146]
[1732893353423,2.74749,3639.7,3638.7,1.6146]
[1732893353562,0.55,3639.9,3638.7,1.6146]
[1732893353763,0.55,3639.7,3638.1,1.6146]
[1732893353995,0.55,3639.5,3638.2,0.16146]
[1732893354194,1.09553242,3639.5,3638.2,0.16146]
[1732893354404,1.09553242,3639.5,3638.1,1.6146]
[1732893354405,0.55,3639.3,3638.1,1.6146]
[1732893354605,3.29784,3639.3,3638.1,1.6146]
[1732893354913,0.55,3638.9,3638.1,1.6146]
[1732893355126,0.55,3639.2,3638.1,1.6146]
[1732893355127,3.29792,3639.2,3638.1,1.6146]
[1732893355475,0.55,3638.9,3638.1,1.6146]
[1732893355918,0.54553242,3639.5,3638.2,1.56058411]
[1732893356215,2.7472,3640.1,3638.4,1.5331]
[1732893356512,0.5797,3640.3,3638.4,1.5331]
[1732893356513,2.7475,3639.7,3638.4,1.5331]
[1732893356731,2.7477,3639.5,3638.4,1.5331]
[1732893356880,2.74756,3639.6,3638.4,1.5331]
[1732893357092,2.74756,3639.6,3638.4,1.702556]
[1732893357505,0.55,3639.6,3638.5,0.02748057]
[1732893357714,0.55,3639.6,3638.4,1.702556]
[1732893358010,2.7469,3640.5,3638.6,2.74829]
[1732893358320,6.44362091,3640.7,3638.7,1.5703]
[1732893358490,2.74726,3640.0,3638.8,0.15703]
[1732893358693,3.11713091,3640.3,3638.8,0.15703]
[1732893358891,2.74728,3640.0,3638.8,0.15703]
[1732893359132,0.5507259,3639.9,3638.8,0.15703]
[1732893359435,0.55,3639.8,3638.8,0.15703]
[1732893359647,0.55,3639.8,3638.9,0.172733]
[1732893360294,3.2974,3639.8,3638.7,1.5703]
[1732893360487,0.55,3639.5,3638.7,1.5703]
[1732893361131,0.55,3639.8,3638.7,1.5703]
[1732893361334,0.5507259,3639.9,3638.7,1.5703]
[1732893361740,6.44355091,3640.7,3638.7,1.5703]
[1732893361901,0.64435509,3640.6,3638.9,1.6337]
[1732893362533,2.74695,3640.4,3638.9,1.6337]
[1732893362836,0.55,3640.3,3638.9,1.6337]
[1732893363340,0.55,3639.9,3639.1,1.5284]
[1732893363500,0.55,3639.9,3639.1,1.68398745]
[1732893363696,2.74649,3641.0,3639.2,0.02747449]
[1732893364034,2.7467,3640.8,3639.3,1.5772]
[1732893364236,0.5797,3641.8,3639.5,3.11713091]
[1732893364549,1.0,3640.0,3639.8,1.5772]
[1732893364756,1.0,3640.0,3639.9,0.75772]
[1732893365049,1.0,3640.0,3639.8,1.5772]
[1732893366254,0.55,3639.9,3638.5,1.5888]
[1732893366633,0.55,3639.5,3638.5,1.5888]
[1732893366809,0.55,3639.9,3638.5,1.5888]
[1732893367219,3.29732,3639.9,3638.5,1.5888]
[1732893367457,0.55,3639.6,3638.6,0.15888]
[1732893367662,3.29762,3639.6,3638.6,0.15888]
[1732893367816,0.55,3639.5,3638.6,0.15888]
[1732893368313,0.55,3639.4,3638.6,0.15888]
[1732893368735,2.74763,3639.5,3638.6,0.15888]
[1732893368939,0.55,3639.6,3638.6,0.15888]
[1732893369151,0.48493715,3639.8,3638.5,1.5888]
[1732893369152,0.55,3639.1,3638.5,1.5888]
[1732893369454,3.29808,3638.9,3638.5,1.5888]
[1732893369952,0.55,3638.9,3638.5,1.5888]
[1732893370163,0.55,3638.7,3638.5,1.5888]
[1732893370476,0.55,3638.8,3638.5,1.5888]
[1732893371323,3.11713091,3638.6,3637.5,1.5205]
[1732893371525,2.74876,3638.0,3637.5,1.5205]
[1732893371761,0.55,3638.1,3637.5,1.5205]
[1732893372339,2.74855,3638.3,3637.5,1.5205]
[1732893372578,2.74847,3638.4,3637.5,1.5205]
[1732893372730,0.55,3638.2,3637.5,1.5205]
[1732893372931,3.8416878,3638.2,3637.5,1.5205]
[1732893373155,2.74869,3638.1,3637.5,1.5205]
[1732893373341,3.29877,3638.0,3637.5,1.5205]
[1732893373560,0.55,3638.0,3637.5,1.5205]
[1732893374079,3.11713091,3639.4,3637.7,1.5256]
[1732893374245,0.0858827,3639.3,3637.8,7.25044]
[1732893374432,0.0858827,3639.3,3637.6,2.74905]
[1732893374433,2.74778,3639.3,3638.0,1.5016]
[1732893374632,3.11713091,3639.4,3638.0,1.5016]
[1732893374869,2.74791,3639.2,3638.0,1.5016]
[1732893375043,5.49582,3639.2,3638.1,0.15016]
[1732893375249,2.74791,3639.2,3638.1,0.15016]
[1732893375454,0.55,3638.9,3638.1,0.15016]
[1732893375650,2.7481,3638.9,3638.1,0.15016]
[1732893375963,3.29821,3638.8,3638.0,1.5016]
[1732893376163,3.29819,3638.8,3638.0,1.5016]
[1732893376475,0.55,3638.7,3638.0,1.5016]
[1732893376635,2.74819,3638.8,3638.0,1.5016]
[1732893376636,0.55,3638.5,3638.0,1.5016]
[1732893376971,2.74835,3638.6,3638.0,1.5016]
[1732893376972,0.55,3638.2,3638.0,1.5016]
[1732893377348,3.29861,3638.2,3637.6,1.5122]
[1732893377676,0.55,3638.2,3637.6,1.5122]
[1732893377979,3.66713091,3638.2,3637.6,1.5122]
[1732893378671,0.5,3638.0,3637.6,1.5122]
[1732893378836,0.5,3638.0,3637.6,1.66342]
[1732893379030,6.40221927,3638.3,3637.6,1.66342]
[1732893379245,3.65367927,3638.3,3637.6,1.66342]
[1732893379671,0.53654836,3638.3,3637.6,1.66342]
[1732893380810,2.74802,3639.0,3637.6,1.66342]
[1732893380990,0.0858725,3638.9,3637.7,1.719742]
[1732893381163,0.55594631,3638.6,3637.7,1.719742]
[1732893381559,2.74746,3639.8,3637.7,1.719742]
[1732893381560,3.11713091,3639.5,3637.9,1.5286]